[Event "22nd ETCC Women 2019"]
[Site "Batumi"]
[Date "2019.10.30"]
[Round "6.16"]
[White "Gara, Ticia"]
[Black "Zhukova, Natalia"]
[Result "1/2-1/2"]
[ECO "C48"]
[WhiteElo "2322"]
[BlackElo "2333"]
[Annotator "NA"]
[PlyCount "80"]
[EventDate "2019.10.24"]
[EventType "team-tourn"]
[EventCountry "GEO"]
[SourceTitle "playchess.com"]
[Source "ChessBase"]
[SourceQuality "1"]
[WhiteTeam "Hungary"]
[BlackTeam "Ukraine"]
[WhiteTeamCountry "HUN"]
[BlackTeamCountry "UKR"]
[TimeControl "40/5400+30:1800+30"]

1. e4 {[%emt 0:00:00]} e5 {[%emt 0:00:00]} 2. Nf3 {[%emt 0:00:00]} Nc6 {[%emt 0:00:00]} 3. Nc3 {[%emt 0:00:00]} Nf6 {[%emt 0:00:58]} 4. Bb5 {[%emt 0:00:21]} Bd6 {[%emt 0:08:36]} 5. d3 {[%emt 0:02:17]} h6 {[%emt 0:02:00]} 6. a3 {[%emt 0:02:54]} O-O {[%emt 0:01:09]} 7. O-O {[%emt 0:00:22]} Re8 {[%emt 0:02:34]} 8. h3 {[%emt 0:14:53]} Bf8 {[%emt 0:10:09]} 9. d4 {[%emt 0:10:31]} exd4 {[%emt 0:15:12]} 10. Nxd4 {[%emt 0:00:04]} Nxd4 {[%emt 0:00:44]} 11. Qxd4 {[%emt 0:00:04]} a6 {[%emt 0:02:04]} 12. Be2 {[%emt 0:08:38]} d6 {[%emt 0:05:14]} 13. Bf4 {[%emt 0:03:19]} Bd7 {[%emt 0:19:16]} 14. Rfe1 {[%emt 0:06:24]} Bc6 {[%emt 0:01:06]} 15. Bf1 {[%emt 0:07:17]} g6 {[%emt 0:06:24]} 16. Rad1 {[%emt 0:07:40]} Bg7 {[%emt 0:00:26]} 17. Qd3 {[%emt 0:01:35]} Nd7 {[%emt 0:03:53]} 18. Qd2 {[%emt 0:10:37]} g5 {[%emt 0:04:00]} 19. Be3 {[%emt 0:02:03]} Nc5 {[%emt 0:05:52]} 20. f3 {[%emt 0:03:02]} Qf6 {[%emt 0:05:00]} 21. Bc4 {[%emt 0:01:47]} Ne6 {[%emt 0:02:44]} 22. Bxe6 {[%emt 0:01:16]} Qxe6 {[%emt 0:01:47]} 23. Bd4 {[%emt 0:04:34]} Bxd4+ {[%emt 0:01:23]} 24. Qxd4 {[%emt 0:00:03]} Qe5 {[%emt 0:00:11]} 25. Qd2 {[%emt 0:03:02]} f5 {[%emt 0:00:17]} 26. exf5 {[%emt 0:05:23]} Qxf5 {[%emt 0:00:09]} 27. Ne2 {[%emt 0:00:33]} Qc5+ {[%emt 0:01:23]} 28. Nd4 {[%emt 0:01:06]} Rxe1+ {[%emt 0:00:15]} 29. Rxe1 {[%emt 0:00:07]} Re8 {[%emt 0:00:05]} 30. Rxe8+ {[%emt 0:01:59]} Bxe8 {[%emt 0:00:01]} 31. c3 {[%emt 0:00:16]} Qe5 {[%emt 0:00:18]} 32. Kf2 {[%emt 0:01:10]} Bg6 {[%emt 0:01:02]} 33. h4 {[%emt 0:01:28]} gxh4 {[%emt 0:01:35]} 34. Qxh6 {[%emt 0:00:48]} Qg3+ {[%emt 0:00:01]} 35. Kf1 {[%emt 0:01:10]} Bd3+ {[%emt 0:00:07]} 36. Kg1 {[%emt 0:00:10]} Qe1+ {[%emt 0:00:45]} 37. Kh2 {[%emt 0:00:01]} Qg3+ {[%emt 0:00:13]} 38. Kg1 {[%emt 0:00:04]} Qe1+ {[%emt 0:00:21]} 39. Kh2 {[%emt 0:00:02]} Qg3+ {[%emt 0:00:06]} 40. Kg1 {[%emt 0:00:00]} Qe1+ {[%emt 0:00:00]} 1/2-1/2

[Event "22nd ETCC Women 2019"]
[Site "Batumi"]
[Date "2019.10.30"]
[Round "6.16"]
[White "Cvitan, Ena"]
[Black "Teuschler, Barbara"]
[Result "1/2-1/2"]
[ECO "D20"]
[WhiteElo "2182"]
[BlackElo "2136"]
[Annotator "NA"]
[PlyCount "63"]
[EventDate "2019.10.24"]
[EventType "team-tourn"]
[EventCountry "GEO"]
[SourceTitle "playchess.com"]
[Source "ChessBase"]
[SourceQuality "1"]
[WhiteTeam "Croatia"]
[BlackTeam "Austria"]
[WhiteTeamCountry "CRO"]
[BlackTeamCountry "AUT"]
[TimeControl "40/5400+30:1800+30"]

1. d4 {[%emt 0:00:00]} d5 {[%emt 0:00:00]} 2. c4 {[%emt 0:00:00]} dxc4 {[%emt 0:00:02]} 3. e3 {[%emt 0:00:21]} e5 {[%emt 0:00:31]} 4. Bxc4 {[%emt 0:00:11]} exd4 {[%emt 0:00:19]} 5. exd4 {[%emt 0:00:09]} Nf6 {[%emt 0:00:37]} 6. Nf3 {[%emt 0:00:31]} Bd6 {[%emt 0:00:37]} 7. Qe2+ {[%emt 0:00:24]} Qe7 {[%emt 0:00:47]} 8. Qxe7+ {[%emt 0:00:08]} Bxe7 {[%emt 0:00:05]} 9. O-O {[%emt 0:00:52]} O-O {[%emt 0:00:40]} 10. Re1 {[%emt 0:03:13]} Nc6 {[%emt 0:02:11]} 11. a3 {[%emt 0:03:30]} Bd6 {[%emt 0:08:36]} 12. Bg5 {[%emt 0:12:18]} Bg4 {[%emt 0:20:05]} 13. Nbd2 {[%emt 0:06:25]} Bxf3 {[%emt 0:03:59]} 14. Nxf3 {[%emt 0:00:12]} Nd7 {[%emt 0:00:49]} 15. Bd5 {[%emt 0:11:31]} h6 {[%emt 0:09:41]} 16. Bxc6 {[%emt 0:07:28]} bxc6 {[%emt 0:00:06]} 17. Be3 {[%emt 0:03:21]} Rfb8 {[%emt 0:21:52]} 18. Re2 {[%emt 0:00:15]} c5 {[%emt 0:04:09]} 19. Rc1 {[%emt 0:10:09]} cxd4 {[%emt 0:00:35]} 20. Nxd4 {[%emt 0:01:33]} Rb7 {[%emt 0:02:52]} 21. Nf5 {[%emt 0:07:16]} Be5 {[%emt 0:01:04]} 22. Rd1 {[%emt 0:03:02]} Nf8 {[%emt 0:02:39]} 23. b4 {[%emt 0:11:01]} Bf6 {[%emt 0:03:43]} 24. g3 {[%emt 0:00:29]} a5 {[%emt 0:00:37]} 25. Bd2 {[%emt 0:02:37]} axb4 {[%emt 0:00:14]} 26. Bxb4 {[%emt 0:00:09]} Ne6 {[%emt 0:01:23]} 27. Rd7 {[%emt 0:01:11]} Rba7 {[%emt 0:02:04]} 28. Be7 {[%emt 0:04:50]} Bxe7 {[%emt 0:01:43]} 29. Nxe7+ {[%emt 0:00:07]} Kf8 {[%emt 0:02:20]} 30. Ng6+ {[%emt 0:01:28]} Kg8 {[%emt 0:00:32]} 31. Ne7+ {[%emt 0:00:33]} Kf8 {[%emt 0:00:13]} 32. Ng6+ {[%emt 0:01:27]} 1/2-1/2

[Event "22nd ETCC Women 2019"]
[Site "Batumi"]
[Date "2019.10.30"]
[Round "6.17"]
[White "Brunello, Marina"]
[Black "Atalik, Ekaterina"]
[Result "1/2-1/2"]
[ECO "B13"]
[WhiteElo "2381"]
[BlackElo "2464"]
[Annotator "ChessBase"]
[PlyCount "82"]
[EventDate "2019.10.24"]
[EventType "team-tourn"]
[EventCountry "GEO"]
[SourceTitle "playchess.com"]
[Source "ChessBase"]
[SourceQuality "1"]
[WhiteTeam "Italy"]
[BlackTeam "Turkey"]
[WhiteTeamCountry "ITA"]
[BlackTeamCountry "TUR"]
[TimeControl "40/5400+30:1800+30"]

1. e4 {[%emt 0:00:00]} c6 {[%emt 0:00:00]} 2. d4 {[%emt 0:00:00]} d5 {[%emt 0:00:00]} 3. exd5 {[%emt 0:00:00]} cxd5 {[%emt 0:00:04]} 4. Bf4 {[%emt 0:00:01]} Nc6 {[%emt 0:01:18]} 5. c3 {[%emt 0:00:07]} g6 {[%emt 0:02:33]} 6. Nd2 {[%emt 0:04:44]} Bg7 {[%emt 0:03:16]} 7. Ngf3 {[%emt 0:00:46]} Nf6 {[%emt 0:00:18]} 8. h3 {[%emt 0:00:40]} O-O {[%emt 0:02:57]} 9. Be2 {[%emt 0:04:49]} Qb6 {[%emt 0:05:04]} 10. Qb3 {[%emt 0:03:23]} Qxb3 {[%emt 0:04:59]} 11. axb3 {[%emt 0:00:26]} Nd7 {[%emt 0:03:22]} 12. O-O {[%emt 0:05:21]} f6 {[%emt 0:05:43]} 13. Rfd1 {[%emt 0:32:20]} e5 {[%emt 0:03:40]} 14. dxe5 {[%emt 0:00:32]} fxe5 {[%emt 0:00:49]} 15. Bg3 {[%emt 0:00:09]} Nb6 {[%emt 0:08:46]} 16. Nf1 {[%emt 0:02:13]} e4 {[%emt 0:08:59]} 17. Nd4 {[%emt 0:02:07]} Nxd4 {[%emt 0:00:19]} 18. cxd4 {[%emt 0:00:06]} Be6 {[%emt 0:00:32]} 19. Ne3 {[%emt 0:02:07]} Rfc8 {[%emt 0:03:03]} 20. Bf4 {[%emt 0:03:49]} a6 {[%emt 0:02:51]} 21. Bg4 {[%emt 0:07:10]} Kf7 {[%emt 0:04:09]} 22. Ra5 {[%emt 0:03:48]} Rc6 {[%emt 0:08:46]} 23. Be2 {[%emt 0:03:30]} Rac8 {[%emt 0:01:15]} 24. Raa1 {[%emt 0:00:04]} Bf8 {[%emt 0:11:56]} 25. f3 {[%emt 0:07:19]} exf3 {[%emt 0:00:48]} 26. Bxf3 {[%emt 0:00:04]} Bg7 {[%emt 0:01:26]} 27. Kh2 {[%emt 0:00:50]} Bf6 {[%emt 0:03:46]} 28. Ra5 {[%emt 0:01:59]} g5 {[%emt 0:03:13]} 29. Be5 {[%emt 0:02:58]} Bxe5+ {[%emt 0:00:37]} 30. dxe5 {[%emt 0:00:04]} Rc5 {[%emt 0:01:44]} 31. b4 {[%emt 0:03:29]} Rxa5 {[%emt 0:01:23]} 32. bxa5 {[%emt 0:00:05]} Nc4 {[%emt 0:00:52]} 33. Nxc4 {[%emt 0:05:42]} Rxc4 {[%emt 0:01:42]} 34. Rxd5 {[%emt 0:01:17]} Rb4 {[%emt 0:04:40]} 35. Rc5 {[%emt 0:00:15]} Rxb2 {[%emt 0:01:33]} 36. Rc7+ {[%emt 0:00:07]} Kf8 {[%emt 0:00:46]} 37. Bxb7 {[%emt 0:02:48]} Rb5 {[%emt 0:00:16]} 38. Bxa6 {[%emt 0:01:21]} Rxa5 {[%emt 0:00:05]} 39. Bd3 {[%emt 0:00:26]} h5 {[%emt 0:00:15]} 40. Bc4 {[%emt 0:00:00]} Bxc4 {[%emt 0:00:00]} 41. Rxc4 {[%emt 0:01:43]} Rxe5 {[%emt 0:00:44]} 1/2-1/2

[Event "22nd ETCC Women 2019"]
[Site "Batumi"]
[Date "2019.10.30"]
[Round "6.17"]
[White "Worek, Joanna"]
[Black "Machlik, Monika"]
[Result "0-1"]
[ECO "A45"]
[WhiteElo "2319"]
[BlackElo "2159"]
[Annotator "NA"]
[PlyCount "162"]
[EventDate "2019.10.24"]
[EventType "team-tourn"]
[EventCountry "GEO"]
[SourceTitle "playchess.com"]
[Source "ChessBase"]
[SourceQuality "1"]
[WhiteTeam "Czech Republic"]
[BlackTeam "Norway"]
[WhiteTeamCountry "CZE"]
[BlackTeamCountry "NOR"]
[TimeControl "40/5400+30:1800+30"]

1. d4 {[%emt 0:00:00]} Nf6 {[%emt 0:00:00]} 2. Bf4 {[%emt 0:00:16]} e6 {[%emt 0:01:02]} 3. e3 {[%emt 0:00:21]} d5 {[%emt 0:00:31]} 4. Nf3 {[%emt 0:00:32]} Bd6 {[%emt 0:00:32]} 5. Bg3 {[%emt 0:00:22]} O-O {[%emt 0:00:24]} 6. Nbd2 {[%emt 0:02:30]} c5 {[%emt 0:00:42]} 7. c3 {[%emt 0:00:23]} Qc7 {[%emt 0:00:20]} 8. Ne5 {[%emt 0:09:11]} b6 {[%emt 0:05:10]} 9. Bd3 {[%emt 0:01:29]} Ba6 {[%emt 0:01:32]} 10. Bxa6 {[%emt 0:10:46]} Nxa6 {[%emt 0:00:05]} 11. O-O {[%emt 0:01:56]} Nb8 {[%emt 0:07:22]} 12. f4 {[%emt 0:04:52]} Nc6 {[%emt 0:02:02]} 13. Qf3 {[%emt 0:02:57]} Nd7 {[%emt 0:23:18]} 14. Kh1 {[%emt 0:07:50]} f5 {[%emt 0:04:58]} 15. Bh4 {[%emt 0:05:19]} Nf6 {[%emt 0:12:52]} 16. Bxf6 {[%emt 0:01:18]} Rxf6 {[%emt 0:01:35]} 17. Rac1 {[%emt 0:15:11]} Rc8 {[%emt 0:04:42]} 18. h3 {[%emt 0:00:34]} Rff8 {[%emt 0:06:40]} 19. c4 {[%emt 0:05:33]} Bxe5 {[%emt 0:11:33]} 20. dxe5 {[%emt 0:05:42]} d4 {[%emt 0:03:52]} 21. e4 {[%emt 0:00:54]} Ne7 {[%emt 0:01:10]} 22. Kh2 {[%emt 0:07:33]} Rcd8 {[%emt 0:00:39]} 23. Qd3 {[%emt 0:03:00]} Nc6 {[%emt 0:01:45]} 24. a3 {[%emt 0:00:16]} Qf7 {[%emt 0:01:50]} 25. Rf3 {[%emt 0:03:10]} Qe7 {[%emt 0:02:18]} 26. Rcf1 {[%emt 0:00:35]} Rf7 {[%emt 0:00:28]} 27. R3f2 {[%emt 0:02:13]} Rdf8 {[%emt 0:00:59]} 28. exf5 {[%emt 0:01:49]} exf5 {[%emt 0:00:37]} 29. Nf3 {[%emt 0:01:36]} h6 {[%emt 0:00:24]} 30. Ne1 {[%emt 0:01:32]} Qe6 {[%emt 0:00:41]} 31. Qc2 {[%emt 0:00:29]} Qe8 {[%emt 0:01:49]} 32. Nd3 {[%emt 0:00:07]} Nd8 {[%emt 0:01:22]} 33. b4 {[%emt 0:00:30]} Ne6 {[%emt 0:00:27]} 34. bxc5 {[%emt 0:00:23]} bxc5 {[%emt 0:00:22]} 35. Rb1 {[%emt 0:00:04]} Qc6 {[%emt 0:00:37]} 36. Qb3 {[%emt 0:01:34]} Rc7 {[%emt 0:01:08]} 37. Qb5 {[%emt 0:03:19]} Rfc8 {[%emt 0:00:36]} 38. a4 {[%emt 0:00:28]} Qe4 {[%emt 0:01:18]} 39. Rf3 {[%emt 0:00:42]} Qc6 {[%emt 0:00:53]} 40. Rf2 {[%emt 0:00:00]} Qe4 {[%emt 0:00:00]} 41. Qb3 {[%emt 0:01:52]} Qc6 {[%emt 0:07:42]} 42. Rfb2 {[%emt 0:04:29]} Qe4 {[%emt 0:05:05]} 43. Re1 {[%emt 0:00:59]} Qc6 {[%emt 0:00:12]} 44. a5 {[%emt 0:01:20]} Re7 {[%emt 0:05:01]} 45. Qd1 {[%emt 0:05:15]} Rb7 {[%emt 0:01:52]} 46. Rxb7 {[%emt 0:06:21]} Qxb7 {[%emt 0:00:01]} 47. Qa4 {[%emt 0:01:26]} Rb8 {[%emt 0:01:29]} 48. Qd1 {[%emt 0:09:15]} Qb3 {[%emt 0:02:15]} 49. Qf3 {[%emt 0:00:14]} Qxc4 {[%emt 0:05:53]} 50. Rc1 {[%emt 0:00:04]} Qb3 {[%emt 0:01:06]} 51. Qc6 {[%emt 0:00:14]} Qxd3 {[%emt 0:02:36]} 52. Qxe6+ {[%emt 0:00:01]} Kh7 {[%emt 0:00:29]} 53. Qd5 {[%emt 0:04:37]} Qe4 {[%emt 0:03:00]} 54. Qxc5 {[%emt 0:00:30]} Qxf4+ {[%emt 0:00:14]} 55. Kh1 {[%emt 0:00:09]} Rb2 {[%emt 0:00:56]} 56. e6 {[%emt 0:01:13]} Qe4 {[%emt 0:00:35]} 57. Rg1 {[%emt 0:00:03]} Qxe6 {[%emt 0:00:45]} 58. Qxd4 {[%emt 0:00:02]} Rb7 {[%emt 0:00:20]} 59. Rf1 {[%emt 0:00:55]} Rf7 {[%emt 0:00:26]} 60. Rf3 {[%emt 0:01:53]} Qe1+ {[%emt 0:00:24]} 61. Kh2 {[%emt 0:00:20]} Qxa5 {[%emt 0:00:15]} 62. Rc3 {[%emt 0:01:00]} Qb5 {[%emt 0:01:05]} 63. Rc8 {[%emt 0:00:14]} Qd7 {[%emt 0:00:31]} 64. Qc4 {[%emt 0:00:05]} Qd6+ {[%emt 0:00:29]} 65. Kh1 {[%emt 0:00:01]} Qd1+ {[%emt 0:00:29]} 66. Kh2 {[%emt 0:00:01]} Qd6+ {[%emt 0:00:09]} 67. Kh1 {[%emt 0:00:00]} Qe7 {[%emt 0:00:52]} 68. Qd5 {[%emt 0:00:15]} Qd7 {[%emt 0:00:30]} 69. Qc4 {[%emt 0:00:01]} a5 {[%emt 0:00:19]} 70. Ra8 {[%emt 0:00:07]} Qd1+ {[%emt 0:00:38]} 71. Kh2 {[%emt 0:00:01]} Qd6+ {[%emt 0:00:13]} 72. Kh1 {[%emt 0:00:02]} Re7 {[%emt 0:00:46]} 73. Qf1 {[%emt 0:00:08]} Qd5 {[%emt 0:00:30]} 74. Ra6 {[%emt 0:00:14]} Re5 {[%emt 0:00:35]} 75. Ra7 {[%emt 0:00:21]} Qd2 {[%emt 0:00:24]} 76. Kh2 {[%emt 0:00:37]} Qd4 {[%emt 0:00:38]} 77. Ra6 {[%emt 0:00:27]} a4 {[%emt 0:00:16]} 78. Qf3 {[%emt 0:00:07]} Qc4 {[%emt 0:00:50]} 79. Ra7 {[%emt 0:00:30]} f4 {[%emt 0:00:31]} 80. Qa8 {[%emt 0:00:51]} Qd3 {[%emt 0:00:27]} 81. Rxa4 {[%emt 0:00:10]} Qg3+ {[%emt 0:00:15]} 0-1

[Event "22nd ETCC Women 2019"]
[Site "Batumi"]
[Date "2019.10.30"]
[Round "6.18"]
[White "Yildiz Kadioglu, Betul Cemre"]
[Black "Zimina, Olga"]
[Result "1/2-1/2"]
[ECO "E10"]
[WhiteElo "2338"]
[BlackElo "2397"]
[Annotator "NA"]
[PlyCount "113"]
[EventDate "2019.10.24"]
[EventType "team-tourn"]
[EventCountry "GEO"]
[SourceTitle "playchess.com"]
[Source "ChessBase"]
[SourceQuality "1"]
[WhiteTeam "Turkey"]
[BlackTeam "Italy"]
[WhiteTeamCountry "TUR"]
[BlackTeamCountry "ITA"]
[TimeControl "40/5400+30:1800+30"]

1. d4 {[%emt 0:00:00]} Nf6 {[%emt 0:00:29]} 2. Nf3 {[%emt 0:00:00]} e6 {[%emt 0:00:19]} 3. c4 {[%emt 0:00:37]} c5 {[%emt 0:01:46]} 4. d5 {[%emt 0:05:26]} b5 {[%emt 0:04:06]} 5. dxe6 {[%emt 0:07:52]} fxe6 {[%emt 0:01:07]} 6. cxb5 {[%emt 0:00:37]} d5 {[%emt 0:00:09]} 7. e3 {[%emt 0:08:02]} Bd6 {[%emt 0:00:50]} 8. b3 {[%emt 0:00:04]} O-O {[%emt 0:00:30]} 9. Bb2 {[%emt 0:00:07]} Nbd7 {[%emt 0:00:23]} 10. Nbd2 {[%emt 0:03:10]} Qe7 {[%emt 0:02:41]} 11. Bd3 {[%emt 0:02:28]} Bb7 {[%emt 0:00:46]} 12. Qc2 {[%emt 0:03:02]} Rac8 {[%emt 0:01:08]} 13. e4 {[%emt 0:08:24]} c4 {[%emt 0:32:55]} 14. bxc4 {[%emt 0:06:02]} dxc4 {[%emt 0:02:09]} 15. Bxc4 {[%emt 0:08:05]} Nb6 {[%emt 0:06:11]} 16. e5 {[%emt 0:07:48]} Nxc4 {[%emt 0:03:31]} 17. exf6 {[%emt 0:06:56]} gxf6 {[%emt 0:01:19]} 18. Nxc4 {[%emt 0:03:40]} Bb4+ {[%emt 0:01:14]} 19. Nfd2 {[%emt 0:02:48]} Bxd2+ {[%emt 0:12:55]} 20. Qxd2 {[%emt 0:00:14]} Rxc4 {[%emt 0:00:18]} 21. O-O {[%emt 0:00:07]} Rd8 {[%emt 0:00:52]} 22. Qe3 {[%emt 0:03:50]} Rd5 {[%emt 0:03:56]} 23. Rfc1 {[%emt 0:05:05]} Rg4 {[%emt 0:02:12]} 24. f3 {[%emt 0:01:42]} Rg6 {[%emt 0:04:02]} 25. Ba3 {[%emt 0:02:47]} Qd7 {[%emt 0:00:23]} 26. Qf4 {[%emt 0:06:26]} e5 {[%emt 0:08:06]} 27. Qb4 {[%emt 0:01:20]} Qg7 {[%emt 0:01:46]} 28. Rc2 {[%emt 0:01:17]} h5 {[%emt 0:01:19]} 29. Rac1 {[%emt 0:00:49]} Rd7 {[%emt 0:01:15]} 30. Qb3+ {[%emt 0:03:48]} Kh7 {[%emt 0:00:05]} 31. h4 {[%emt 0:02:13]} e4 {[%emt 0:00:33]} 32. Qe6 {[%emt 0:00:25]} exf3 {[%emt 0:00:27]} 33. Qxd7 {[%emt 0:00:17]} Rxg2+ {[%emt 0:02:10]} 34. Kf1 {[%emt 0:00:05]} Qxd7 {[%emt 0:01:23]} 35. Rc7 {[%emt 0:00:02]} Rg7 {[%emt 0:00:30]} 36. Rxd7 {[%emt 0:00:04]} Rxd7 {[%emt 0:00:03]} 37. Bc5 {[%emt 0:01:07]} Be4 {[%emt 0:00:43]} 38. a4 {[%emt 0:00:53]} Kg6 {[%emt 0:01:23]} 39. Kf2 {[%emt 0:01:09]} Kf5 {[%emt 0:00:25]} 40. Re1 {[%emt 0:00:00]} Rc7 {[%emt 0:00:00]} 41. Rc1 {[%emt 0:08:40]} Rd7 {[%emt 0:04:30]} 42. Be3 {[%emt 0:03:10]} Kg4 {[%emt 0:00:38]} 43. Rc4 {[%emt 0:01:09]} f5 {[%emt 0:00:31]} 44. Rc1 {[%emt 0:04:13]} f4 {[%emt 0:06:57]} 45. Rg1+ {[%emt 0:00:21]} Kxh4 {[%emt 0:00:18]} 46. Bxf4 {[%emt 0:00:23]} Rf7 {[%emt 0:03:30]} 47. Be5 {[%emt 0:06:32]} Kh3 {[%emt 0:04:48]} 48. Rg3+ {[%emt 0:04:11]} Kh4 {[%emt 0:00:07]} 49. a5 {[%emt 0:00:17]} Rf5 {[%emt 0:02:34]} 50. Bd6 {[%emt 0:00:29]} Rf7 {[%emt 0:00:14]} 51. Be5 {[%emt 0:01:58]} Rf5 {[%emt 0:01:35]} 52. Bd6 {[%emt 0:02:30]} Rf7 {[%emt 0:00:05]} 53. b6 {[%emt 0:01:16]} axb6 {[%emt 0:00:05]} 54. axb6 {[%emt 0:00:04]} Bb7 {[%emt 0:02:58]} 55. Be5 {[%emt 0:01:06]} Rf5 {[%emt 0:03:55]} 56. Bd6 {[%emt 0:00:08]} Rf7 {[%emt 0:00:07]} 57. Be5 {[%emt 0:01:11]} 1/2-1/2

[Event "22nd ETCC Women 2019"]
[Site "Batumi"]
[Date "2019.10.30"]
[Round "6.18"]
[White "Machlik, Edit"]
[Black "Olsarova, Karolina"]
[Result "1/2-1/2"]
[ECO "E32"]
[WhiteElo "2062"]
[BlackElo "2294"]
[Annotator "NA"]
[PlyCount "71"]
[EventDate "2019.10.24"]
[EventType "team-tourn"]
[EventCountry "GEO"]
[SourceTitle "playchess.com"]
[Source "ChessBase"]
[SourceQuality "1"]
[WhiteTeam "Norway"]
[BlackTeam "Czech Republic"]
[WhiteTeamCountry "NOR"]
[BlackTeamCountry "CZE"]
[TimeControl "40/5400+30:1800+30"]

1. d4 {[%emt 0:00:00]} Nf6 {[%emt 0:00:00]} 2. c4 {[%emt 0:00:00]} e6 {[%emt 0:00:00]} 3. Nc3 {[%emt 0:00:33]} Bb4 {[%emt 0:00:00]} 4. Qc2 {[%emt 0:00:40]} O-O {[%emt 0:00:24]} 5. a3 {[%emt 0:01:10]} Bxc3+ {[%emt 0:00:18]} 6. Qxc3 {[%emt 0:00:06]} h6 {[%emt 0:00:33]} 7. Nf3 {[%emt 0:04:01]} b6 {[%emt 0:00:29]} 8. e3 {[%emt 0:11:02]} Bb7 {[%emt 0:01:04]} 9. Be2 {[%emt 0:06:34]} d6 {[%emt 0:01:19]} 10. O-O {[%emt 0:01:23]} a5 {[%emt 0:03:06]} 11. b3 {[%emt 0:01:12]} Nbd7 {[%emt 0:00:18]} 12. Bb2 {[%emt 0:03:35]} Qe7 {[%emt 0:00:58]} 13. Rad1 {[%emt 0:13:16]} c5 {[%emt 0:07:02]} 14. dxc5 {[%emt 0:19:49]} Nxc5 {[%emt 0:03:29]} 15. Nd4 {[%emt 0:05:43]} Rfd8 {[%emt 0:06:04]} 16. f3 {[%emt 0:06:34]} d5 {[%emt 0:07:33]} 17. Nb5 {[%emt 0:02:09]} Rac8 {[%emt 0:04:15]} 18. a4 {[%emt 0:09:35]} dxc4 {[%emt 0:13:14]} 19. Bxc4 {[%emt 0:00:53]} Bd5 {[%emt 0:00:10]} 20. Na3 {[%emt 0:04:09]} Qf8 {[%emt 0:13:13]} 21. e4 {[%emt 0:02:43]} Bxc4 {[%emt 0:03:24]} 22. Rxd8 {[%emt 0:03:28]} Rxd8 {[%emt 0:03:28]} 23. Nxc4 {[%emt 0:00:05]} Rd3 {[%emt 0:01:51]} 24. Qc2 {[%emt 0:00:06]} Qd8 {[%emt 0:03:53]} 25. Nxa5 {[%emt 0:01:05]} Rd2 {[%emt 0:05:03]} 26. Bxf6 {[%emt 0:00:35]} gxf6 {[%emt 0:00:03]} 27. Qc4 {[%emt 0:01:30]} Ra2 {[%emt 0:04:10]} 28. Qc3 {[%emt 0:00:53]} bxa5 {[%emt 0:06:07]} 29. Qxc5 {[%emt 0:00:01]} Qd3 {[%emt 0:00:05]} 30. b4 {[%emt 0:01:24]} axb4 {[%emt 0:02:59]} 31. Qxb4 {[%emt 0:00:33]} e5 {[%emt 0:07:49]} 32. Qe1 {[%emt 0:00:30]} Kh7 {[%emt 0:01:19]} 33. a5 {[%emt 0:00:32]} Qd4+ {[%emt 0:00:09]} 34. Kh1 {[%emt 0:00:12]} Qb2 {[%emt 0:00:46]} 35. Rg1 {[%emt 0:00:15]} Qb5 {[%emt 0:00:58]} 36. Qh4 {[%emt 0:00:37]} 1/2-1/2

[Event "22nd ETCC Women 2019"]
[Site "Batumi"]
[Date "2019.10.30"]
[Round "6.19"]
[White "Sedina, Elena"]
[Black "Ozturk, Kubra"]
[Result "1/2-1/2"]
[ECO "C24"]
[WhiteElo "2294"]
[BlackElo "2317"]
[Annotator "NA"]
[PlyCount "109"]
[EventDate "2019.10.24"]
[EventType "team-tourn"]
[EventCountry "GEO"]
[SourceTitle "playchess.com"]
[Source "ChessBase"]
[SourceQuality "1"]
[WhiteTeam "Italy"]
[BlackTeam "Turkey"]
[WhiteTeamCountry "ITA"]
[BlackTeamCountry "TUR"]
[TimeControl "40/5400+30:1800+30"]

1. e4 {[%emt 0:00:00]} e5 {[%emt 0:00:00]} 2. Bc4 {[%emt 0:00:02]} Nf6 {[%emt 0:00:00]} 3. d3 {[%emt 0:00:07]} c6 {[%emt 0:00:01]} 4. Nf3 {[%emt 0:00:26]} Be7 {[%emt 0:00:12]} 5. O-O {[%emt 0:00:29]} d6 {[%emt 0:00:06]} 6. Re1 {[%emt 0:00:34]} O-O {[%emt 0:00:47]} 7. Nbd2 {[%emt 0:01:25]} b5 {[%emt 0:04:03]} 8. Bb3 {[%emt 0:00:38]} a5 {[%emt 0:03:10]} 9. a4 {[%emt 0:02:54]} Na6 {[%emt 0:04:12]} 10. d4 {[%emt 0:07:54]} exd4 {[%emt 0:07:57]} 11. axb5 {[%emt 0:03:44]} cxb5 {[%emt 0:00:28]} 12. Nxd4 {[%emt 0:00:18]} Bd7 {[%emt 0:10:01]} 13. c3 {[%emt 0:26:33]} Nc5 {[%emt 0:02:32]} 14. Bc2 {[%emt 0:00:13]} Qb6 {[%emt 0:04:28]} 15. Nf1 {[%emt 0:09:29]} Rfe8 {[%emt 0:02:42]} 16. Ng3 {[%emt 0:18:31]} g6 {[%emt 0:02:15]} 17. h3 {[%emt 0:00:15]} Bf8 {[%emt 0:04:50]} 18. Bg5 {[%emt 0:02:17]} Bg7 {[%emt 0:21:53]} 19. Qf3 {[%emt 0:02:06]} Qd8 {[%emt 0:01:30]} 20. Qf4 {[%emt 0:07:13]} Ne6 {[%emt 0:15:26]} 21. Nxe6 {[%emt 0:00:06]} Rxe6 {[%emt 0:00:23]} 22. Bb3 {[%emt 0:05:49]} Re5 {[%emt 0:00:02]} 23. Qh4 {[%emt 0:00:36]} Be6 {[%emt 0:01:47]} 24. Bc2 {[%emt 0:04:04]} b4 {[%emt 0:01:12]} 25. cxb4 {[%emt 0:03:27]} Rc8 {[%emt 0:00:23]} 26. Bd3 {[%emt 0:00:20]} axb4 {[%emt 0:01:01]} 27. f4 {[%emt 0:02:09]} Rxg5 {[%emt 0:05:16]} 28. Qxg5 {[%emt 0:00:08]} Qb6+ {[%emt 0:01:00]} 29. Kh2 {[%emt 0:00:40]} h6 {[%emt 0:01:09]} 30. Qa5 {[%emt 0:01:28]} Qd4 {[%emt 0:01:18]} 31. Red1 {[%emt 0:00:44]} Qe3 {[%emt 0:01:32]} 32. Qxb4 {[%emt 0:00:38]} Qxf4 {[%emt 0:00:12]} 33. Qe1 {[%emt 0:00:37]} Nh5 {[%emt 0:01:00]} 34. Be2 {[%emt 0:00:16]} Bxb2 {[%emt 0:01:23]} 35. Bxh5 {[%emt 0:00:14]} gxh5 {[%emt 0:00:19]} 36. Kh1 {[%emt 0:00:22]} Be5 {[%emt 0:01:13]} 37. Ra3 {[%emt 0:00:09]} Rc2 {[%emt 0:01:24]} 38. Qe3 {[%emt 0:01:26]} h4 {[%emt 0:00:57]} 39. Qxf4 {[%emt 0:00:08]} Bxf4 {[%emt 0:00:05]} 40. Nf5 {[%emt 0:00:00]} Bxf5 {[%emt 0:00:00]} 41. exf5 {[%emt 0:00:21]} Kg7 {[%emt 0:01:50]} 42. Rad3 {[%emt 0:14:08]} Kf6 {[%emt 0:01:30]} 43. Rd4 {[%emt 0:04:33]} Bg3 {[%emt 0:00:50]} 44. Rxd6+ {[%emt 0:00:09]} Bxd6 {[%emt 0:00:09]} 45. Rxd6+ {[%emt 0:00:02]} Kg5 {[%emt 0:01:55]} 46. Rd7 {[%emt 0:01:06]} f6 {[%emt 0:02:35]} 47. Rg7+ {[%emt 0:00:28]} Kxf5 {[%emt 0:00:32]} 48. Rg4 {[%emt 0:00:06]} h5 {[%emt 0:00:51]} 49. Rxh4 {[%emt 0:00:02]} Kg5 {[%emt 0:01:14]} 50. Ra4 {[%emt 0:00:09]} Rb2 {[%emt 0:01:56]} 51. Kg1 {[%emt 0:00:22]} Rb1+ {[%emt 0:00:33]} 52. Kf2 {[%emt 0:00:05]} Rb2+ {[%emt 0:00:06]} 53. Kf3 {[%emt 0:00:30]} Rb3+ {[%emt 0:00:12]} 54. Kf2 {[%emt 0:00:25]} Rb2+ {[%emt 0:00:05]} 55. Kf3 {[%emt 0:00:04]} 1/2-1/2